[Event "Titled Tuesday Blitz June 13 Early 2023"]
[White "Antonio, Jorge Carlos"]
[Black "Mrithyunjay Mahadevan"]
[WhiteFideId "113190"]
[BlackFideId "45003521"]
[WhiteElo "2247"]
[BlackElo "1626"]
[Result "0-1"]
[Round "2"]
[TimeControl "180+2"]
[Date "2023.06.13"]
[WhiteClock "0:00:37"]
[BlackClock "0:01:23"]
[Board "196"]

1. d4 {[%clk 0:02:56]}  Nf6 {[%clk 0:02:57]} 2. Nf3 {[%clk 0:02:54]}  d5 {[%clk 0:02:56]} 3. Bf4 {[%clk 0:02:53]}  c5 {[%clk 0:02:52]} 4. e3 {[%clk 0:02:53]}  Nc6 {[%clk 0:02:52]} 5. c3 {[%clk 0:02:53]}  Qb6 {[%clk 0:02:50]} 6. b3 {[%clk 0:02:52]}  Nh5 {[%clk 0:02:46]} 7. Bg3 {[%clk 0:02:51]}  Bg4 {[%clk 0:02:43]} 8. Be2 {[%clk 0:02:49]}  Bxf3 {[%clk 0:02:38]} 9. Bxf3 {[%clk 0:02:47]}  Nxg3 {[%clk 0:02:37]} 10. hxg3 {[%clk 0:02:46]}  O-O-O {[%clk 0:02:36]} 11. O-O {[%clk 0:02:30]}  Kb8 {[%clk 0:02:33]} 12. Nd2 {[%clk 0:02:27]}  e5 {[%clk 0:02:31]} 13. dxe5 {[%clk 0:02:11]}  Nxe5 {[%clk 0:02:32]} 14. Qc2 {[%clk 0:02:11]}  h5 {[%clk 0:02:18]} 15. Rfd1 {[%clk 0:02:09]}  h4 {[%clk 0:02:15]} 16. gxh4 {[%clk 0:01:58]}  Qf6 {[%clk 0:02:14]} 17. h5 {[%clk 0:01:47]}  Nxf3+ {[%clk 0:02:12]} 18. Nxf3 {[%clk 0:01:45]}  Rxh5 {[%clk 0:02:13]} 19. c4 {[%clk 0:01:38]}  d4 {[%clk 0:02:06]} 20. exd4 {[%clk 0:01:38]}  cxd4 {[%clk 0:02:07]} 21. Qe4 {[%clk 0:01:36]}  d3 {[%clk 0:01:57]} 22. Rac1 {[%clk 0:01:28]}  Qh6 {[%clk 0:01:55]} 23. Kf1 {[%clk 0:01:21]}  Rh1+ {[%clk 0:01:50]} 24. Ng1 {[%clk 0:01:21]}  Bd6 {[%clk 0:01:29]} 25. Qxd3 {[%clk 0:00:49]}  Rxg1+ {[%clk 0:01:23]} 26. Kxg1 {[%clk 0:00:47]}  Bh2+ {[%clk 0:01:23]} 27. Kf1 {[%clk 0:00:37]}  Rxd3 {[%clk 0:01:23]} 0-1


[Site "https://www.chess.com"]

[Event "Titled Tuesday Blitz June 13 Early 2023"]
[White "Hnydiuk, Aleksander"]
[Black "Al Mukhaini, Shima"]
[WhiteFideId "1109057"]
[BlackFideId "22005854"]
[WhiteElo "2374"]
[BlackElo "2272"]
[Result "1-0"]
[Round "2"]
[TimeControl "180+2"]
[Date "2023.06.13"]
[WhiteClock "0:01:09"]
[BlackClock "0:00:00"]
[Board "197"]

1. e4 {[%clk 0:03:00]}  g6 {[%clk 0:02:58]} 2. d4 {[%clk 0:03:00]}  Bg7 {[%clk 0:02:58]} 3. Nc3 {[%clk 0:03:00]}  b6 {[%clk 0:02:58]} 4. Nf3 {[%clk 0:02:53]}  Bb7 {[%clk 0:02:58]} 5. Be3 {[%clk 0:02:51]}  d6 {[%clk 0:02:55]} 6. Qd2 {[%clk 0:02:50]}  e6 {[%clk 0:02:54]} 7. h4 {[%clk 0:02:48]}  h6 {[%clk 0:02:54]} 8. O-O-O {[%clk 0:02:44]}  Ne7 {[%clk 0:02:51]} 9. d5 {[%clk 0:02:31]}  e5 {[%clk 0:02:48]} 10. Nh2 {[%clk 0:02:21]}  a6 {[%clk 0:02:46]} 11. Ng4 {[%clk 0:02:18]}  Ng8 {[%clk 0:02:40]} 12. f4 {[%clk 0:02:15]}  Nd7 {[%clk 0:01:28]} 13. h5 {[%clk 0:02:11]}  exf4 {[%clk 0:01:18]} 14. Bxf4 {[%clk 0:02:11]}  g5 {[%clk 0:01:17]} 15. Bg3 {[%clk 0:02:09]}  Qe7 {[%clk 0:01:15]} 16. Ne3 {[%clk 0:02:06]}  Be5 {[%clk 0:01:04]} 17. Nf5 {[%clk 0:02:05]}  Qf6 {[%clk 0:01:04]} 18. Be2 {[%clk 0:01:52]}  Bxg3 {[%clk 0:00:56]} 19. Nxg3 {[%clk 0:01:52]}  Qe7 {[%clk 0:00:51]} 20. Rhf1 {[%clk 0:01:48]}  O-O-O {[%clk 0:00:44]} 21. Bg4 {[%clk 0:01:47]}  Kb8 {[%clk 0:00:37]} 22. Bxd7 {[%clk 0:01:45]}  Qxd7 {[%clk 0:00:36]} 23. Rf2 {[%clk 0:01:42]}  Qg4 {[%clk 0:00:35]} 24. Qd3 {[%clk 0:01:33]}  f6 {[%clk 0:00:30]} 25. Rdf1 {[%clk 0:01:30]}  Qd7 {[%clk 0:00:24]} 26. Nce2 {[%clk 0:01:26]}  Qe8 {[%clk 0:00:21]} 27. Nd4 {[%clk 0:01:24]}  Ka8 {[%clk 0:00:18]} 28. Ne6 {[%clk 0:01:23]}  Rd7 {[%clk 0:00:17]} 29. Qe2 {[%clk 0:01:18]}  Re7 {[%clk 0:00:17]} 30. Nf5 {[%clk 0:01:17]}  Rxe6 {[%clk 0:00:16]} 31. Ng7 {[%clk 0:01:11]}  Rxe4 {[%clk 0:00:08]} 32. Nxe8 {[%clk 0:01:11]}  Rxe2 {[%clk 0:00:08]} 33. Rxe2 {[%clk 0:01:11]}  Bxd5 {[%clk 0:00:08]} 34. Nxc7+ {[%clk 0:01:10]}  Kb7 {[%clk 0:00:00]} 35. Nxd5 {[%clk 0:01:09]} 1-0


[Site "https://www.chess.com"]

[Event "Titled Tuesday Blitz June 13 Early 2023"]
[White "Liu, Kelsey"]
[Black "kuanysh1981"]
[WhiteFideId "30944481"]
[WhiteElo "2265"]
[BlackElo "2494"]
[Result "0-1"]
[Round "2"]
[TimeControl "180+2"]
[Date "2023.06.13"]
[WhiteClock "0:02:21"]
[BlackClock "0:02:28"]
[Board "198"]

1. e4 {[%clk 0:03:00]}  c5 {[%clk 0:02:59]} 2. Nf3 {[%clk 0:03:01]}  e6 {[%clk 0:02:58]} 3. d4 {[%clk 0:02:58]}  cxd4 {[%clk 0:02:59]} 4. Nxd4 {[%clk 0:02:59]}  a6 {[%clk 0:03:00]} 5. Bd3 {[%clk 0:02:54]}  Qc7 {[%clk 0:02:59]} 6. Be3 {[%clk 0:02:49]}  Nf6 {[%clk 0:02:59]} 7. Nd2 {[%clk 0:02:47]}  d5 {[%clk 0:02:55]} 8. a4 {[%clk 0:02:42]}  Bd6 {[%clk 0:02:46]} 9. exd5 {[%clk 0:02:39]}  Nxd5 {[%clk 0:02:46]} 10. Qe2 {[%clk 0:02:35]}  Nc6 {[%clk 0:02:37]} 11. Nxc6 {[%clk 0:02:33]}  Qxc6 {[%clk 0:02:38]} 12. Nc4 {[%clk 0:02:31]}  Nxe3 {[%clk 0:02:36]} 13. Nxd6+ {[%clk 0:02:31]}  Qxd6 {[%clk 0:02:35]} 14. Qxe3 {[%clk 0:02:31]}  Qb4+ {[%clk 0:02:32]} 15. Qd2 {[%clk 0:02:28]}  Qxb2 {[%clk 0:02:31]} 16. O-O {[%clk 0:02:28]}  O-O {[%clk 0:02:30]} 17. Rfb1 {[%clk 0:02:25]}  Qf6 {[%clk 0:02:29]} 18. Rb4 {[%clk 0:02:21]}  Qxa1+ {[%clk 0:02:28]} 0-1


[Site "https://www.chess.com"]

[Event "Titled Tuesday Blitz June 13 Early 2023"]
[White "Turzo, Attila"]
[Black "Bommini Mounika Akshaya"]
[WhiteFideId "704954"]
[BlackFideId "25019872"]
[WhiteElo "2493"]
[BlackElo "2087"]
[Result "0-1"]
[Round "2"]
[TimeControl "180+2"]
[Date "2023.06.13"]
[WhiteClock "0:00:00"]
[BlackClock "0:00:03"]
[Board "199"]

1. d4 {[%clk 0:03:00]}  Nf6 {[%clk 0:02:54]} 2. c4 {[%clk 0:03:01]}  c5 {[%clk 0:02:52]} 3. d5 {[%clk 0:03:00]}  g6 {[%clk 0:02:53]} 4. g3 {[%clk 0:03:00]}  Bg7 {[%clk 0:02:53]} 5. Bg2 {[%clk 0:03:01]}  O-O {[%clk 0:02:53]} 6. Nf3 {[%clk 0:03:01]}  d6 {[%clk 0:02:50]} 7. Nc3 {[%clk 0:02:59]}  e5 {[%clk 0:02:46]} 8. O-O {[%clk 0:02:34]}  h6 {[%clk 0:02:16]} 9. e4 {[%clk 0:02:25]}  Nbd7 {[%clk 0:02:09]} 10. Ne1 {[%clk 0:02:23]}  a6 {[%clk 0:02:01]} 11. a4 {[%clk 0:02:21]}  Rb8 {[%clk 0:01:38]} 12. Nd3 {[%clk 0:02:16]}  Re8 {[%clk 0:01:04]} 13. Be3 {[%clk 0:02:13]}  g5 {[%clk 0:00:55]} 14. Bh3 {[%clk 0:02:06]}  Nf8 {[%clk 0:00:54]} 15. Bxc8 {[%clk 0:02:04]}  Qxc8 {[%clk 0:00:50]} 16. f3 {[%clk 0:02:03]}  Ng6 {[%clk 0:00:50]} 17. Rb1 {[%clk 0:01:36]}  g4 {[%clk 0:00:38]} 18. fxg4 {[%clk 0:01:20]}  Nxg4 {[%clk 0:00:35]} 19. Bd2 {[%clk 0:01:14]}  h5 {[%clk 0:00:20]} 20. Qf3 {[%clk 0:01:07]}  Qd7 {[%clk 0:00:18]} 21. Kg2 {[%clk 0:00:47]}  h4 {[%clk 0:00:12]} 22. Qf5 {[%clk 0:00:40]}  Rbd8 {[%clk 0:00:07]} 23. Qxd7 {[%clk 0:00:38]}  Rxd7 {[%clk 0:00:07]} 24. h3 {[%clk 0:00:38]}  Nf6 {[%clk 0:00:06]} 25. g4 {[%clk 0:00:37]}  Rf8 {[%clk 0:00:05]} 26. Bg5 {[%clk 0:00:31]}  Ne8 {[%clk 0:00:05]} 27. b4 {[%clk 0:00:28]}  cxb4 {[%clk 0:00:03]} 28. Rxb4 {[%clk 0:00:29]}  f6 {[%clk 0:00:03]} 29. Be3 {[%clk 0:00:28]}  Rc7 {[%clk 0:00:04]} 30. c5 {[%clk 0:00:26]}  Kh7 {[%clk 0:00:03]} 31. Rfb1 {[%clk 0:00:23]}  dxc5 {[%clk 0:00:03]} 32. Rxb7 {[%clk 0:00:22]}  Rxb7 {[%clk 0:00:02]} 33. Rxb7 {[%clk 0:00:23]}  Nd6 {[%clk 0:00:01]} 34. Nxc5 {[%clk 0:00:19]}  Nxb7 {[%clk 0:00:01]} 35. Nxb7 {[%clk 0:00:18]}  Rb8 {[%clk 0:00:02]} 36. Nc5 {[%clk 0:00:16]}  Rb2+ {[%clk 0:00:02]} 37. Kg1 {[%clk 0:00:12]}  Rc2 {[%clk 0:00:03]} 38. d6 {[%clk 0:00:09]}  Bf8 {[%clk 0:00:03]} 39. d7 {[%clk 0:00:06]}  Be7 {[%clk 0:00:03]} 40. Nd5 {[%clk 0:00:04]}  Bd8 {[%clk 0:00:02]} 41. Ne6 {[%clk 0:00:03]}  Ba5 {[%clk 0:00:01]} 42. d8=Q {[%clk 0:00:03]}  Bxd8 {[%clk 0:00:02]} 43. Nxd8 {[%clk 0:00:03]}  Ra2 {[%clk 0:00:02]} 44. Nxf6+ {[%clk 0:00:00]}  Kg7 {[%clk 0:00:03]} 0-1


[Site "https://www.chess.com"]

[Event "Titled Tuesday Blitz June 13 Early 2023"]
[White "agvania123"]
[Black "Hristodoulou, Panagiotis"]
[BlackFideId "4214340"]
[WhiteElo "2249"]
[BlackElo "2272"]
[Result "1-0"]
[Round "2"]
[TimeControl "180+2"]
[Date "2023.06.13"]
[WhiteClock "0:00:33"]
[BlackClock "0:00:36"]
[Board "202"]

1. c4 {[%clk 0:03:00]}  e6 {[%clk 0:02:59]} 2. d4 {[%clk 0:02:56]}  Nf6 {[%clk 0:02:59]} 3. Nc3 {[%clk 0:02:53]}  Bb4 {[%clk 0:02:59]} 4. e3 {[%clk 0:02:52]}  O-O {[%clk 0:02:59]} 5. Bd3 {[%clk 0:02:52]}  d5 {[%clk 0:02:58]} 6. Ne2 {[%clk 0:02:52]}  b6 {[%clk 0:02:57]} 7. O-O {[%clk 0:02:51]}  Ba6 {[%clk 0:02:56]} 8. cxd5 {[%clk 0:02:50]}  exd5 {[%clk 0:02:54]} 9. a3 {[%clk 0:02:46]}  Bd6 {[%clk 0:02:50]} 10. Ng3 {[%clk 0:02:42]}  Bxd3 {[%clk 0:02:49]} 11. Qxd3 {[%clk 0:02:43]}  c6 {[%clk 0:02:49]} 12. b4 {[%clk 0:02:43]}  Nbd7 {[%clk 0:02:48]} 13. Bb2 {[%clk 0:02:42]}  Re8 {[%clk 0:02:47]} 14. Rac1 {[%clk 0:02:42]}  b5 {[%clk 0:02:42]} 15. Nb1 {[%clk 0:02:38]}  Rc8 {[%clk 0:02:41]} 16. Nd2 {[%clk 0:02:38]}  Nb6 {[%clk 0:02:40]} 17. Nf5 {[%clk 0:02:25]}  Nc4 {[%clk 0:02:36]} 18. Nxc4 {[%clk 0:02:25]}  bxc4 {[%clk 0:02:33]} 19. Qc2 {[%clk 0:02:24]}  Ne4 {[%clk 0:02:32]} 20. f3 {[%clk 0:02:21]}  Nf6 {[%clk 0:02:30]} 21. Rfe1 {[%clk 0:02:20]}  Bb8 {[%clk 0:02:27]} 22. e4 {[%clk 0:02:17]}  g6 {[%clk 0:02:26]} 23. Ne3 {[%clk 0:01:44]}  dxe4 {[%clk 0:02:21]} 24. fxe4 {[%clk 0:01:44]}  Rxe4 {[%clk 0:02:15]} 25. Nxc4 {[%clk 0:01:40]}  Rxe1+ {[%clk 0:01:49]} 26. Rxe1 {[%clk 0:01:38]}  Nd5 {[%clk 0:01:49]} 27. Ne5 {[%clk 0:01:24]}  Bxe5 {[%clk 0:01:46]} 28. dxe5 {[%clk 0:01:24]}  Qb6+ {[%clk 0:01:26]} 29. Kh1 {[%clk 0:01:21]}  c5 {[%clk 0:01:24]} 30. e6 {[%clk 0:01:14]}  fxe6 {[%clk 0:01:24]} 31. Qe4 {[%clk 0:00:59]}  c4 {[%clk 0:01:23]} 32. Bd4 {[%clk 0:00:57]}  Qd6 {[%clk 0:01:22]} 33. Bc5 {[%clk 0:00:55]}  Rxc5 {[%clk 0:00:46]} 34. bxc5 {[%clk 0:00:55]}  Qxc5 {[%clk 0:00:46]} 35. Qxe6+ {[%clk 0:00:55]}  Kg7 {[%clk 0:00:36]} 36. Qe5+ {[%clk 0:00:33]} 1-0


[Site "https://www.chess.com"]

[Event "Titled Tuesday Blitz June 13 Early 2023"]
[White "Taboas Rodriguez, Daniel"]
[Black "Leschinsky, Gary"]
[WhiteFideId "2208466"]
[BlackFideId "30951321"]
[WhiteElo "2365"]
[BlackElo "2020"]
[Result "1-0"]
[Round "2"]
[TimeControl "180+2"]
[Date "2023.06.13"]
[WhiteClock "0:02:33"]
[BlackClock "0:01:50"]
[Board "203"]

1. d4 {[%clk 0:02:59]}  Nf6 {[%clk 0:02:58]} 2. Nf3 {[%clk 0:02:58]}  d5 {[%clk 0:02:58]} 3. c4 {[%clk 0:02:59]}  e6 {[%clk 0:02:58]} 4. Bg5 {[%clk 0:02:58]}  c6 {[%clk 0:02:55]} 5. Nc3 {[%clk 0:02:57]}  Be7 {[%clk 0:02:54]} 6. e3 {[%clk 0:02:57]}  O-O {[%clk 0:02:55]} 7. Bd3 {[%clk 0:02:55]}  dxc4 {[%clk 0:02:54]} 8. Bxc4 {[%clk 0:02:56]}  b5 {[%clk 0:02:55]} 9. Bd3 {[%clk 0:02:55]}  Bb7 {[%clk 0:02:54]} 10. O-O {[%clk 0:02:54]}  b4 {[%clk 0:02:51]} 11. Bxf6 {[%clk 0:02:53]}  Bxf6 {[%clk 0:02:49]} 12. Ne4 {[%clk 0:02:53]}  Nd7 {[%clk 0:02:47]} 13. Rc1 {[%clk 0:02:52]}  Be7 {[%clk 0:02:48]} 14. Qc2 {[%clk 0:02:44]}  Rc8 {[%clk 0:02:33]} 15. Nc5 {[%clk 0:02:40]}  Bxc5 {[%clk 0:02:11]} 16. dxc5 {[%clk 0:02:41]}  Nxc5 {[%clk 0:02:01]} 17. Bxh7+ {[%clk 0:02:40]}  Kh8 {[%clk 0:02:01]} 18. Qxc5 {[%clk 0:02:35]}  Kxh7 {[%clk 0:02:01]} 19. Qh5+ {[%clk 0:02:35]}  Kg8 {[%clk 0:02:00]} 20. Ng5 {[%clk 0:02:36]}  Qd3 {[%clk 0:02:00]} 21. e4 {[%clk 0:02:33]}  Rfd8 {[%clk 0:01:50]} 22. Qxf7+ {[%clk 0:02:33]} 1-0


[Site "https://www.chess.com"]

[Event "Titled Tuesday Blitz June 13 Early 2023"]
[White "Tuleyeva-Aketayeva, Dana"]
[Black "Kokoszczynski, Jan"]
[WhiteFideId "13701932"]
[BlackFideId "1174460"]
[WhiteElo "2030"]
[BlackElo "2139"]
[Result "1-0"]
[Round "2"]
[TimeControl "180+2"]
[Date "2023.06.13"]
[WhiteClock "0:00:11"]
[BlackClock "0:00:11"]
[Board "204"]

1. d4 {[%clk 0:03:00]}  Nf6 {[%clk 0:02:59]} 2. Nf3 {[%clk 0:02:41]}  g6 {[%clk 0:02:59]} 3. g3 {[%clk 0:02:41]}  Bg7 {[%clk 0:02:59]} 4. Bg2 {[%clk 0:02:37]}  O-O {[%clk 0:03:00]} 5. O-O {[%clk 0:02:38]}  d6 {[%clk 0:03:00]} 6. Nc3 {[%clk 0:02:37]}  Nc6 {[%clk 0:02:47]} 7. e4 {[%clk 0:02:32]}  e5 {[%clk 0:02:45]} 8. dxe5 {[%clk 0:02:31]}  Nxe5 {[%clk 0:02:46]} 9. Nxe5 {[%clk 0:02:31]}  dxe5 {[%clk 0:02:47]} 10. Bg5 {[%clk 0:02:28]}  c6 {[%clk 0:02:46]} 11. Qxd8 {[%clk 0:02:23]}  Rxd8 {[%clk 0:02:47]} 12. Rfd1 {[%clk 0:02:23]}  Bg4 {[%clk 0:02:46]} 13. f3 {[%clk 0:02:21]}  Be6 {[%clk 0:02:46]} 14. f4 {[%clk 0:02:16]}  exf4 {[%clk 0:02:36]} 15. Rxd8+ {[%clk 0:02:08]}  Rxd8 {[%clk 0:02:36]} 16. e5 {[%clk 0:02:09]}  fxg3 {[%clk 0:02:30]} 17. hxg3 {[%clk 0:02:08]}  Bf5 {[%clk 0:02:20]} 18. exf6 {[%clk 0:02:01]}  Bf8 {[%clk 0:02:15]} 19. Ne4 {[%clk 0:01:41]}  h6 {[%clk 0:02:07]} 20. Bf4 {[%clk 0:01:33]}  g5 {[%clk 0:02:07]} 21. Bc7 {[%clk 0:00:52]}  Re8 {[%clk 0:01:34]} 22. Nd6 {[%clk 0:00:48]}  Bxd6 {[%clk 0:01:29]} 23. Bxd6 {[%clk 0:00:49]}  Bxc2 {[%clk 0:01:29]} 24. Bc5 {[%clk 0:00:48]}  b6 {[%clk 0:01:28]} 25. Bf2 {[%clk 0:00:45]}  c5 {[%clk 0:01:28]} 26. Re1 {[%clk 0:00:44]}  Rxe1+ {[%clk 0:01:18]} 27. Bxe1 {[%clk 0:00:44]}  Kh7 {[%clk 0:01:18]} 28. Bc3 {[%clk 0:00:38]}  Kg6 {[%clk 0:01:19]} 29. Kf2 {[%clk 0:00:37]}  Kf5 {[%clk 0:01:16]} 30. Bd5 {[%clk 0:00:36]}  Kg6 {[%clk 0:01:13]} 31. Bc4 {[%clk 0:00:36]}  h5 {[%clk 0:01:13]} 32. a3 {[%clk 0:00:34]}  Bf5 {[%clk 0:01:08]} 33. Be5 {[%clk 0:00:27]}  h4 {[%clk 0:01:02]} 34. gxh4 {[%clk 0:00:26]}  gxh4 {[%clk 0:01:03]} 35. Kf3 {[%clk 0:00:23]}  Bd7 {[%clk 0:01:01]} 36. Bd3+ {[%clk 0:00:22]}  Kg5 {[%clk 0:01:00]} 37. Bb8 {[%clk 0:00:17]}  b5 {[%clk 0:00:54]} 38. Bxa7 {[%clk 0:00:16]}  c4 {[%clk 0:00:54]} 39. Be3+ {[%clk 0:00:15]}  Kxf6 {[%clk 0:00:55]} 40. Bf1 {[%clk 0:00:15]}  Ke5 {[%clk 0:00:51]} 41. Bf2 {[%clk 0:00:09]}  h3 {[%clk 0:00:48]} 42. Be3 {[%clk 0:00:08]}  f6 {[%clk 0:00:33]} 43. Bd2 {[%clk 0:00:06]}  Bf5 {[%clk 0:00:25]} 44. Bc3+ {[%clk 0:00:05]}  Ke6 {[%clk 0:00:26]} 45. Kg3 {[%clk 0:00:05]}  h2 {[%clk 0:00:12]} 46. Kxh2 {[%clk 0:00:05]}  Bd3 {[%clk 0:00:13]} 47. Bh3+ {[%clk 0:00:04]}  f5 {[%clk 0:00:13]} 48. Kg3 {[%clk 0:00:04]}  Kd5 {[%clk 0:00:13]} 49. Kf4 {[%clk 0:00:05]}  Kc5 {[%clk 0:00:12]} 50. Bxf5 {[%clk 0:00:05]}  b4 {[%clk 0:00:13]} 51. Bxd3 {[%clk 0:00:04]}  bxc3 {[%clk 0:00:11]} 52. bxc3 {[%clk 0:00:05]}  cxd3 {[%clk 0:00:11]} 53. Ke3 {[%clk 0:00:05]}  Kc4 {[%clk 0:00:08]} 54. Kd2 {[%clk 0:00:06]}  Kb3 {[%clk 0:00:08]} 55. Kxd3 {[%clk 0:00:06]}  Kxa3 {[%clk 0:00:08]} 56. Kd4 {[%clk 0:00:07]}  Ka4 {[%clk 0:00:08]} 57. c4 {[%clk 0:00:07]}  Ka5 {[%clk 0:00:09]} 58. Kd5 {[%clk 0:00:08]}  Kb6 {[%clk 0:00:09]} 59. Kd6 {[%clk 0:00:08]}  Kb7 {[%clk 0:00:10]} 60. c5 {[%clk 0:00:06]}  Kb8 {[%clk 0:00:10]} 61. Kc6 {[%clk 0:00:07]}  Kc8 {[%clk 0:00:11]} 62. Kb6 {[%clk 0:00:06]}  Kb8 {[%clk 0:00:11]} 63. c6 {[%clk 0:00:07]}  Kc8 {[%clk 0:00:10]} 64. c7 {[%clk 0:00:07]}  Kd7 {[%clk 0:00:11]} 65. Kb7 {[%clk 0:00:08]}  Kd6 {[%clk 0:00:10]} 66. c8=Q {[%clk 0:00:09]}  Ke5 {[%clk 0:00:10]} 67. Qc6 {[%clk 0:00:10]}  Kd4 {[%clk 0:00:11]} 68. Kb6 {[%clk 0:00:11]} 1-0


[Site "https://www.chess.com"]

[Event "Titled Tuesday Blitz June 13 Early 2023"]
[White "cristianserban1"]
[Black "Kiseleva, Arina"]
[BlackFideId "4164989"]
[WhiteElo "2488"]
[BlackElo "1701"]
[Result "1-0"]
[Round "2"]
[TimeControl "180+2"]
[Date "2023.06.13"]
[WhiteClock "0:00:58"]
[BlackClock "0:00:05"]
[Board "205"]

1. d4 {[%clk 0:02:53]}  Nf6 {[%clk 0:02:59]} 2. Bf4 {[%clk 0:02:53]}  e6 {[%clk 0:02:57]} 3. Nf3 {[%clk 0:02:52]}  c5 {[%clk 0:02:55]} 4. e3 {[%clk 0:02:52]}  d5 {[%clk 0:02:56]} 5. Nbd2 {[%clk 0:02:52]}  Bd6 {[%clk 0:02:54]} 6. Bg3 {[%clk 0:02:43]}  Nc6 {[%clk 0:02:50]} 7. c3 {[%clk 0:02:42]}  Qe7 {[%clk 0:02:49]} 8. Bd3 {[%clk 0:02:41]}  e5 {[%clk 0:02:36]} 9. dxc5 {[%clk 0:02:35]}  Bxc5 {[%clk 0:02:31]} 10. e4 {[%clk 0:02:35]}  dxe4 {[%clk 0:02:24]} 11. Nxe4 {[%clk 0:02:34]}  Nxe4 {[%clk 0:02:20]} 12. Bxe4 {[%clk 0:02:35]}  O-O {[%clk 0:02:18]} 13. O-O {[%clk 0:02:34]}  f6 {[%clk 0:02:03]} 14. Qc2 {[%clk 0:02:28]}  g6 {[%clk 0:01:50]} 15. Rad1 {[%clk 0:02:28]}  Be6 {[%clk 0:01:48]} 16. Rfe1 {[%clk 0:02:26]}  Qg7 {[%clk 0:01:47]} 17. Bd5 {[%clk 0:02:15]}  Bxd5 {[%clk 0:01:31]} 18. Rxd5 {[%clk 0:02:16]}  b6 {[%clk 0:01:29]} 19. Red1 {[%clk 0:02:15]}  Rf7 {[%clk 0:01:25]} 20. b4 {[%clk 0:02:00]}  Bf8 {[%clk 0:01:19]} 21. Qb3 {[%clk 0:01:57]}  Kh8 {[%clk 0:01:14]} 22. Nd2 {[%clk 0:01:51]}  Re8 {[%clk 0:01:07]} 23. Ne4 {[%clk 0:01:48]}  f5 {[%clk 0:00:52]} 24. Ng5 {[%clk 0:01:48]}  Rfe7 {[%clk 0:00:52]} 25. Bh4 {[%clk 0:01:41]}  h6 {[%clk 0:00:42]} 26. Rd6 {[%clk 0:01:07]}  Rc8 {[%clk 0:00:06]} 27. Ne6 {[%clk 0:01:03]}  Rxe6 {[%clk 0:00:06]} 28. Qxe6 {[%clk 0:00:58]}  Bxd6 {[%clk 0:00:06]} 29. Bf6 {[%clk 0:00:58]}  Bf8 {[%clk 0:00:06]} 30. Bxg7+ {[%clk 0:00:58]}  Bxg7 {[%clk 0:00:05]} 31. Qxc8+ {[%clk 0:00:58]} 1-0


[Site "https://www.chess.com"]

[Event "Titled Tuesday Blitz June 13 Early 2023"]
[White "rionelG"]
[Black "Palczert, Matyas"]
[BlackFideId "784958"]
[WhiteElo "2223"]
[BlackElo "2224"]
[Result "1-0"]
[Round "2"]
[TimeControl "180+2"]
[Date "2023.06.13"]
[WhiteClock "0:00:03"]
[BlackClock "0:00:03"]
[Board "208"]

1. e4 {[%clk 0:03:00]}  c5 {[%clk 0:02:39]} 2. g3 {[%clk 0:02:51]}  d5 {[%clk 0:02:35]} 3. exd5 {[%clk 0:02:52]}  Qxd5 {[%clk 0:02:35]} 4. Nf3 {[%clk 0:02:52]}  Nc6 {[%clk 0:02:32]} 5. Bg2 {[%clk 0:02:53]}  Bg4 {[%clk 0:02:32]} 6. O-O {[%clk 0:02:53]}  Qd7 {[%clk 0:02:26]} 7. d3 {[%clk 0:02:50]}  Nf6 {[%clk 0:02:18]} 8. Nbd2 {[%clk 0:02:36]}  e6 {[%clk 0:02:18]} 9. a4 {[%clk 0:02:33]}  Be7 {[%clk 0:02:15]} 10. Nc4 {[%clk 0:02:33]}  O-O {[%clk 0:02:02]} 11. h3 {[%clk 0:02:33]}  Bh5 {[%clk 0:01:59]} 12. Bf4 {[%clk 0:02:32]}  Nd5 {[%clk 0:01:55]} 13. Bd2 {[%clk 0:02:28]}  Nd4 {[%clk 0:01:48]} 14. g4 {[%clk 0:02:27]}  Nxf3+ {[%clk 0:01:48]} 15. Qxf3 {[%clk 0:02:26]}  Bg6 {[%clk 0:01:48]} 16. Rfe1 {[%clk 0:02:24]}  Bf6 {[%clk 0:01:45]} 17. Ne5 {[%clk 0:02:16]}  Bxe5 {[%clk 0:01:45]} 18. Rxe5 {[%clk 0:02:16]}  Rac8 {[%clk 0:01:44]} 19. h4 {[%clk 0:01:41]}  h6 {[%clk 0:01:39]} 20. h5 {[%clk 0:01:38]}  Bh7 {[%clk 0:01:39]} 21. g5 {[%clk 0:01:39]}  hxg5 {[%clk 0:01:39]} 22. Rxg5 {[%clk 0:01:39]}  f6 {[%clk 0:01:34]} 23. Rg3 {[%clk 0:01:37]}  Kh8 {[%clk 0:01:26]} 24. a5 {[%clk 0:01:21]}  c4 {[%clk 0:01:25]} 25. dxc4 {[%clk 0:01:01]}  Rxc4 {[%clk 0:01:25]} 26. c3 {[%clk 0:01:00]}  Qc7 {[%clk 0:00:59]} 27. Qe2 {[%clk 0:00:55]}  Nf4 {[%clk 0:00:55]} 28. Bxf4 {[%clk 0:00:50]}  Rxf4 {[%clk 0:00:55]} 29. Qxe6 {[%clk 0:00:48]}  Qc5 {[%clk 0:00:55]} 30. Qe3 {[%clk 0:00:48]}  Qd6 {[%clk 0:00:44]} 31. Re1 {[%clk 0:00:44]}  Rh4 {[%clk 0:00:37]} 32. Qe7 {[%clk 0:00:39]}  Qxe7 {[%clk 0:00:37]} 33. Rxe7 {[%clk 0:00:38]}  Rd8 {[%clk 0:00:34]} 34. Bf3 {[%clk 0:00:28]}  Rg8 {[%clk 0:00:26]} 35. Bd5 {[%clk 0:00:18]}  Rd8 {[%clk 0:00:22]} 36. Rgxg7 {[%clk 0:00:17]}  Bf5 {[%clk 0:00:18]} 37. c4 {[%clk 0:00:17]}  Rxh5 {[%clk 0:00:17]} 38. Rxb7 {[%clk 0:00:16]}  Re8 {[%clk 0:00:17]} 39. Rbe7 {[%clk 0:00:14]}  Rb8 {[%clk 0:00:17]} 40. Rxa7 {[%clk 0:00:13]}  Bh7 {[%clk 0:00:16]} 41. Rgb7 {[%clk 0:00:05]}  Re8 {[%clk 0:00:15]} 42. Re7 {[%clk 0:00:05]}  Rb8 {[%clk 0:00:15]} 43. a6 {[%clk 0:00:05]}  Rg5+ {[%clk 0:00:13]} 44. Kh2 {[%clk 0:00:03]}  Bf5 {[%clk 0:00:09]} 45. Rab7 {[%clk 0:00:02]}  Rd8 {[%clk 0:00:05]} 46. a7 {[%clk 0:00:02]}  Rh5+ {[%clk 0:00:05]} 47. Kg3 {[%clk 0:00:02]}  Rg5+ {[%clk 0:00:05]} 48. Kf4 {[%clk 0:00:02]}  Bb1 {[%clk 0:00:03]} 49. Rb8 {[%clk 0:00:02]}  Rf5+ {[%clk 0:00:03]} 50. Ke3 {[%clk 0:00:03]}  Re5+ {[%clk 0:00:03]} 51. Kd4 {[%clk 0:00:03]}  Rxe7 {[%clk 0:00:01]} 52. Rxd8+ {[%clk 0:00:03]}  Kg7 {[%clk 0:00:02]} 53. a8=Q {[%clk 0:00:04]}  Kh6 {[%clk 0:00:03]} 54. Rg8 {[%clk 0:00:04]}  Re4+ {[%clk 0:00:03]} 55. Bxe4 {[%clk 0:00:04]}  f5 {[%clk 0:00:03]} 56. Ke3 {[%clk 0:00:04]}  f4+ {[%clk 0:00:03]} 57. Kxf4 {[%clk 0:00:04]}  Bxe4 {[%clk 0:00:03]} 58. Qb7 {[%clk 0:00:03]}  Kh5 {[%clk 0:00:04]} 59. Qxe4 {[%clk 0:00:03]}  Kh4 {[%clk 0:00:03]} 60. Qh1# {[%clk 0:00:03]} 1-0


[Site "https://www.chess.com"]